[Event "20 ans"]
[Date "2016.10.27"]
[Round "1.2"]
[White "Bellahcene, Bilel"]
[Black "Vachier-Lagrave, Maxime"]
[Result "0-1"]
[WhiteElo "2366"]
[BlackElo "2795"]
[ECO "D85"]
[WhiteFed "FRA"]
[BlackFed "FRA"]
[FCGameId "-56384751"]
[TimeControl "900+3"]

1. d4 {[%clk 0:14:55]} Nf6 {[%clk 0:15:03]} 2. c4 {[%clk 0:14:52]} g6  {[%clk 0:15:03]} 3. Nc3 {[%clk 0:14:49]} d5 {[%clk 0:15:05]} 4. cxd5  {[%clk 0:14:41]} Nxd5 {[%clk 0:15:06]} 5. e4 {[%clk 0:14:43]} Nxc3  {[%clk 0:15:08]} 6. bxc3 {[%clk 0:14:45]} Bg7 {[%clk 0:15:09]} 7. Nf3  {[%clk 0:14:46]} c5 {[%clk 0:15:11]} 8. Be3 {[%clk 0:14:47]} Qa5  {[%clk 0:15:00]} 9. Qd2 {[%clk 0:14:45]} Nc6 {[%clk 0:15:02]} 10. Rb1  {[%clk 0:14:34]} cxd4 {[%clk 0:15:03]} 11. cxd4 {[%clk 0:14:32]} O-O  {[%clk 0:15:03]} 12. Qxa5 {[%clk 0:13:13]} Nxa5 {[%clk 0:15:03]} 13. d5  {[%clk 0:11:53]} e6 {[%clk 0:13:00]} 14. Bd2 {[%clk 0:10:05]} b6  {[%clk 0:12:50]} 15. Bxa5 {[%clk 0:09:54]} bxa5 {[%clk 0:12:50]} 16. Bc4  {[%clk 0:09:55]} exd5 {[%clk 0:12:19]} 17. Bxd5 {[%clk 0:09:24]} Ba6  {[%clk 0:12:21]} 18. Bxa8 {[%clk 0:07:20]} Rxa8 {[%clk 0:12:23]} 19. e5  {[%clk 0:06:41]} Bf8 {[%clk 0:12:17]} 20. Rc1 {[%clk 0:04:59]} Rd8  {[%clk 0:11:57]} 21. Rc2 {[%clk 0:04:41]} Bb4+ {[%clk 0:11:51]} 22. Nd2  {[%clk 0:04:42]} a4 {[%clk 0:11:24]} 23. Kd1 {[%clk 0:01:57]} Bd3  {[%clk 0:11:26]} 24. Nf3 {[%clk 0:01:47]} Be4+ {[%clk 0:11:26]} 0-1

[Event "20 ans"]
[Date "2016.10.27"]
[Round "1.2"]
[White "Deac, Bogdan-Daniel"]
[Black "Radjabov, Teimour"]
[Result "1/2-1/2"]
[WhiteElo "2443"]
[BlackElo "2788"]
[ECO "C63"]
[WhiteFed "ROU"]
[BlackFed "AZE"]
[FCGameId "1210380325"]
[TimeControl "900+3"]

1. e4 {[%clk 0:15:03]} e5 {[%clk 0:15:04]} 2. Nf3 Nc6 3. Bb5 {[%clk 0:15:07]} f5  {[%clk 0:15:08]} 4. Nc3 {[%clk 0:13:18]} fxe4 {[%clk 0:15:10]} 5. Nxe4  {[%clk 0:13:20]} Nf6 {[%clk 0:15:12]} 6. Qe2 {[%clk 0:11:11]} d5  {[%clk 0:15:12]} 7. Nxf6+ {[%clk 0:09:44]} gxf6 {[%clk 0:15:14]} 8. d4  {[%clk 0:09:16]} e4 {[%clk 0:15:05]} 9. Nh4 {[%clk 0:09:16]} Be6  {[%clk 0:15:06]} 10. c3 {[%clk 0:07:04]} Qd7 {[%clk 0:12:52]} 11. Qh5+  {[%clk 0:07:04]} Bf7 {[%clk 0:11:31]} 12. Qf5 {[%clk 0:07:04]} Be6  {[%clk 0:11:33]} 13. Qh5+ {[%clk 0:06:45]} Bf7 {[%clk 0:11:34]} 14. Qf5  {[%clk 0:06:47]} Be6 {[%clk 0:11:36]} 1/2-1/2

[Event "20 ans"]
[Date "2016.10.27"]
[Round "1.2"]
[White "Azarov, Sergei"]
[Black "Hou, Yifan"]
[Result "0-1"]
[WhiteElo "2586"]
[BlackElo "2645"]
[ECO "B85"]
[WhiteFed "BLR"]
[BlackFed "CHN"]
[FCGameId "2119852590"]
[TimeControl "900+3"]

1. e4 {[%clk 0:15:04]} c5 {[%clk 0:15:05]} 2. Nf3 {[%clk 0:15:05]} e6  {[%clk 0:14:55]} 3. d4 {[%clk 0:15:07]} cxd4 {[%clk 0:14:56]} 4. Nxd4  {[%clk 0:15:08]} a6 {[%clk 0:14:51]} 5. Be2 {[%clk 0:15:05]} Nf6  {[%clk 0:14:39]} 6. Nc3 {[%clk 0:15:05]} Qc7 {[%clk 0:14:33]} 7. O-O  {[%clk 0:15:00]} d6 {[%clk 0:13:43]} 8. f4 {[%clk 0:14:50]} Nbd7  {[%clk 0:13:37]} 9. a4 {[%clk 0:14:31]} b6 {[%clk 0:13:25]} 10. Bf3  {[%clk 0:13:53]} Bb7 {[%clk 0:13:20]} 11. Kh1 {[%clk 0:13:28]} Be7  {[%clk 0:13:02]} 12. f5 {[%clk 0:12:58]} e5 {[%clk 0:12:39]} 13. Nb3  {[%clk 0:12:55]} Rc8 {[%clk 0:11:09]} 14. Bg5 {[%clk 0:11:18]} Qb8  {[%clk 0:10:37]} 15. Qe2 {[%clk 0:11:05]} O-O {[%clk 0:09:53]} 16. Rad1  {[%clk 0:11:01]} Rfe8 {[%clk 0:09:44]} 17. Nc1 {[%clk 0:10:18]} h6  {[%clk 0:07:50]} 18. Bh4 {[%clk 0:10:10]} d5 {[%clk 0:06:21]} 19. exd5  {[%clk 0:08:44]} e4 {[%clk 0:04:40]} 20. Nxe4 {[%clk 0:08:19]} Nxe4  {[%clk 0:04:42]} 21. Qxe4 {[%clk 0:08:20]} Bf6 {[%clk 0:04:44]} 22. Qg4  {[%clk 0:06:54]} Ne5 {[%clk 0:04:44]} 23. Qg3 {[%clk 0:06:15]} Bxh4  {[%clk 0:04:29]} 24. Qxh4 {[%clk 0:06:17]} Nxf3 {[%clk 0:04:11]} 25. Rxf3  {[%clk 0:05:29]} Rxc2 {[%clk 0:04:12]} 26. Qd4 {[%clk 0:04:09]} Qe5  {[%clk 0:02:01]} 27. Rfd3 {[%clk 0:01:08]} Qxf5 {[%clk 0:01:33]} 28. h3  {[%clk 0:00:44]} Re5 {[%clk 0:00:59]} 29. Rf3 {[%clk 0:00:32]} Qg5  {[%clk 0:01:01]} 30. Qg1 {[%clk 0:00:09]} Rxd5 {[%clk 0:00:47]} 31. Nd3  {[%clk 0:00:11]} Rf5 {[%clk 0:00:41]} 32. Ne1 {[%clk 0:00:05]} Bxf3  {[%clk 0:00:39]} 33. Nxf3 {[%clk 0:00:04]} Rxf3 {[%clk 0:00:32]} 34. gxf3  {[%clk 0:00:06]} Qe5 {[%clk 0:00:20]} 35. Re1 {[%clk 0:00:04]} Qf4  {[%clk 0:00:20]} 36. Rf1 {[%clk 0:00:04]} Rxb2 {[%clk 0:00:19]} 37. Rf2  {[%clk 0:00:06]} Rxf2 {[%clk 0:00:15]} 38. Qxf2 {[%clk 0:00:08]} b5  {[%clk 0:00:12]} 39. axb5 {[%clk 0:00:08]} axb5 {[%clk 0:00:15]} 40. Kg2  {[%clk 0:00:09]} b4 {[%clk 0:00:17]} 41. Qb6 {[%clk 0:00:11]} Qd2+  {[%clk 0:00:19]} 42. Kg3 {[%clk 0:00:12]} Qc3 {[%clk 0:00:19]} 43. h4  {[%clk 0:00:06]} b3 {[%clk 0:00:21]} 44. h5 {[%clk 0:00:07]} b2 {[%clk 0:00:17]}  45. Qb5 0-1

[Event "20 ans"]
[Date "2016.10.27"]
[Round "1.2"]
[White "Antipov, Mikhail Al."]
[Black "Korobov, Anton"]
[Result "0-1"]
[WhiteElo "2617"]
[BlackElo "2714"]
[ECO "B90"]
[WhiteFed "RUS"]
[BlackFed "UKR"]
[FCGameId "-1977115804"]
[TimeControl "900+3"]

1. e4 {[%clk 0:15:05]} c5 {[%clk 0:15:05]} 2. Nf3 {[%clk 0:15:07]} d6  {[%clk 0:15:06]} 3. d4 {[%clk 0:15:06]} cxd4 {[%clk 0:15:08]} 4. Nxd4  {[%clk 0:15:08]} Nf6 {[%clk 0:15:09]} 5. Nc3 {[%clk 0:15:10]} a6  {[%clk 0:15:11]} 6. h3 {[%clk 0:15:11]} e6 {[%clk 0:15:13]} 7. g4  {[%clk 0:15:13]} h6 {[%clk 0:15:14]} 8. Bg2 {[%clk 0:15:07]} Be7  {[%clk 0:15:13]} 9. O-O {[%clk 0:14:45]} O-O {[%clk 0:15:12]} 10. b3  {[%clk 0:14:44]} Nfd7 {[%clk 0:13:59]} 11. Bb2 {[%clk 0:14:33]} Nc6  {[%clk 0:14:00]} 12. Nce2 {[%clk 0:14:14]} Nde5 {[%clk 0:13:39]} 13. c4  {[%clk 0:13:59]} Ng6 {[%clk 0:13:27]} 14. Nxc6 {[%clk 0:13:03]} bxc6  {[%clk 0:13:27]} 15. f4 {[%clk 0:12:44]} e5 {[%clk 0:13:15]} 16. f5  {[%clk 0:12:18]} Nh4 {[%clk 0:13:17]} 17. Ng3 {[%clk 0:11:55]} Bg5  {[%clk 0:12:28]} 18. Bc1 {[%clk 0:10:41]} a5 {[%clk 0:11:48]} 19. Nh5  {[%clk 0:09:16]} f6 {[%clk 0:11:22]} 20. Qd3 {[%clk 0:08:23]} a4  {[%clk 0:10:27]} 21. Ba3 {[%clk 0:07:59]} Qb6+ {[%clk 0:09:21]} 22. c5  {[%clk 0:07:31]} Qa6 {[%clk 0:08:42]} 23. Rfd1 {[%clk 0:06:09]} Qxd3  {[%clk 0:07:42]} 24. Rxd3 {[%clk 0:06:11]} axb3 {[%clk 0:07:39]} 25. Rxb3  {[%clk 0:06:07]} Nxg2 {[%clk 0:04:48]} 26. Kxg2 {[%clk 0:06:09]} d5  {[%clk 0:04:49]} 27. Kg3 {[%clk 0:03:45]} dxe4 {[%clk 0:04:39]} 28. Rd1  {[%clk 0:02:54]} e3 {[%clk 0:03:51]} 29. h4 {[%clk 0:02:49]} e2 {[%clk 0:03:36]}  30. Re1 {[%clk 0:02:52]} Bf4+ {[%clk 0:03:35]} 31. Nxf4 {[%clk 0:02:49]} exf4+  {[%clk 0:03:37]} 32. Kxf4 {[%clk 0:02:51]} Re8 {[%clk 0:03:26]} 33. Kf3  {[%clk 0:02:16]} h5 {[%clk 0:03:14]} 34. Rxe2 {[%clk 0:01:35]} hxg4+  {[%clk 0:03:11]} 35. Kf2 {[%clk 0:01:38]} Rxe2+ {[%clk 0:03:11]} 36. Kxe2  {[%clk 0:01:39]} Bxf5 {[%clk 0:03:12]} 37. Kf2 {[%clk 0:01:37]} Be6  {[%clk 0:02:29]} 38. Re3 {[%clk 0:01:39]} Bxa2 {[%clk 0:02:19]} 39. Kg3  {[%clk 0:01:41]} Kf7 {[%clk 0:02:08]} 40. Kxg4 {[%clk 0:01:39]} Be6+  {[%clk 0:02:07]} 41. Kg3 {[%clk 0:01:29]} Ra4 {[%clk 0:02:08]} 0-1

[Event "20 ans"]
[Date "2016.10.27"]
[Round "1.2"]
[White "Gledura, Benjamin"]
[Black "Moiseenko, Alexander"]
[Result "1/2-1/2"]
[WhiteElo "2565"]
[BlackElo "2651"]
[ECO "A05"]
[WhiteFed "HUN"]
[BlackFed "UKR"]
[FCGameId "-530173462"]
[TimeControl "900+3"]

1. Nf3 {[%clk 0:15:03]} Nf6 {[%clk 0:15:05]} 2. g3 {[%clk 0:15:04]} e6  {[%clk 0:14:55]} 3. Bg2 {[%clk 0:15:05]} d5 {[%clk 0:14:54]} 4. O-O  {[%clk 0:15:04]} c5 {[%clk 0:14:52]} 5. d4 {[%clk 0:15:00]} cxd4  {[%clk 0:14:51]} 6. Nxd4 {[%clk 0:15:01]} e5 {[%clk 0:14:51]} 7. Nb3  {[%clk 0:14:13]} Be6 {[%clk 0:14:45]} 8. Nc3 {[%clk 0:13:35]} Be7  {[%clk 0:14:25]} 9. f4 {[%clk 0:13:23]} exf4 {[%clk 0:14:25]} 10. gxf4  {[%clk 0:13:02]} g6 {[%clk 0:14:20]} 11. Nd4 {[%clk 0:12:46]} Nc6  {[%clk 0:13:57]} 12. Nxe6 {[%clk 0:11:26]} fxe6 {[%clk 0:13:58]} 13. e3  {[%clk 0:11:28]} O-O {[%clk 0:13:27]} 14. Ne2 {[%clk 0:11:30]} Bd6  {[%clk 0:12:28]} 15. c3 {[%clk 0:10:33]} Qe7 {[%clk 0:12:25]} 16. Bd2  {[%clk 0:10:19]} Rad8 {[%clk 0:12:21]} 17. Qc2 {[%clk 0:10:16]} e5  {[%clk 0:10:00]} 18. Rae1 {[%clk 0:09:40]} exf4 {[%clk 0:09:45]} 19. Nxf4  {[%clk 0:09:33]} Kh8 {[%clk 0:08:34]} 20. Qb3 {[%clk 0:07:55]} g5  {[%clk 0:06:43]} 21. Nxd5 {[%clk 0:06:16]} Nxd5 {[%clk 0:02:21]} 22. Bxd5  {[%clk 0:05:37]} Bxh2+ {[%clk 0:01:29]} 23. Kxh2 {[%clk 0:04:16]} Qe5+  {[%clk 0:01:29]} 24. Kg2 {[%clk 0:04:10]} Rxf1 {[%clk 0:01:28]} 25. c4  {[%clk 0:03:40]} Rf2+ {[%clk 0:00:44]} 26. Kxf2 {[%clk 0:03:41]} Qh2+  {[%clk 0:00:46]} 27. Kf3 {[%clk 0:03:28]} Qxd2 {[%clk 0:00:21]} 28. Qc3+  {[%clk 0:03:28]} Qxc3 {[%clk 0:00:23]} 29. bxc3 {[%clk 0:03:31]} Kg7  {[%clk 0:00:18]} 30. e4 {[%clk 0:03:18]} h5 {[%clk 0:00:15]} 31. e5  {[%clk 0:03:18]} Rf8+ {[%clk 0:00:14]} 32. Kg2 {[%clk 0:03:17]} Re8  {[%clk 0:00:09]} 33. e6 {[%clk 0:03:11]} Re7 {[%clk 0:00:10]} 34. c5  {[%clk 0:01:32]} Nd8 {[%clk 0:00:12]} 35. c4 {[%clk 0:00:38]} Kf6  {[%clk 0:00:14]} 36. Rf1+ {[%clk 0:00:40]} Kg7 {[%clk 0:00:11]} 37. Re1  {[%clk 0:00:11]} Kf6 {[%clk 0:00:13]} 38. Rf1+ Kg7 39. Rb1 {[%clk 0:00:10]} Kf6  {[%clk 0:00:11]} 40. Rf1+ {[%clk 0:00:07]} Kg7 {[%clk 0:00:13]} 41. Rf5  {[%clk 0:00:07]} Nxe6 {[%clk 0:00:13]} 42. Kg1 {[%clk 0:00:05]} Nxc5  {[%clk 0:00:08]} 43. Rxg5+ {[%clk 0:00:08]} Kf6 {[%clk 0:00:11]} 44. Rxh5  {[%clk 0:00:10]} Re2 {[%clk 0:00:07]} 45. Rh7 {[%clk 0:00:07]} Rxa2  {[%clk 0:00:08]} 46. Bxb7 {[%clk 0:00:07]} Nxb7 {[%clk 0:00:10]} 47. Rxb7  {[%clk 0:00:09]} Ke5 {[%clk 0:00:12]} 48. Kf1 {[%clk 0:00:09]} Kd4  {[%clk 0:00:14]} 49. Rc7 {[%clk 0:00:10]} Rc2 {[%clk 0:00:15]} 50. Rxa7  {[%clk 0:00:09]} Rxc4 {[%clk 0:00:17]} 51. Rd7+ {[%clk 0:00:10]} Ke3  {[%clk 0:00:18]} 52. Re7+ {[%clk 0:00:12]} Re4 {[%clk 0:00:20]} 53. Rxe4+ Kxe4  1/2-1/2

[Event "20 ans"]
[Date "2016.10.27"]
[Round "1.2"]
[White "Vocaturo, Daniele"]
[Black "Gharamian, Tigran"]
[Result "1-0"]
[WhiteElo "2606"]
[BlackElo "2638"]
[ECO "B12"]
[WhiteFed "ITA"]
[BlackFed "FRA"]
[FCGameId "-170898750"]
[TimeControl "900+3"]

1. e4 {[%clk 0:15:05]} c6 {[%clk 0:15:03]} 2. d4 {[%clk 0:15:00]} d5  {[%clk 0:15:04]} 3. e5 {[%clk 0:15:01]} Bf5 {[%clk 0:15:05]} 4. Nf3  {[%clk 0:15:03]} e6 {[%clk 0:15:06]} 5. Be2 {[%clk 0:15:00]} Ne7  {[%clk 0:15:04]} 6. O-O {[%clk 0:15:00]} c5 {[%clk 0:15:04]} 7. c4  {[%clk 0:14:54]} Nbc6 {[%clk 0:14:17]} 8. dxc5 {[%clk 0:13:59]} d4  {[%clk 0:14:19]} 9. Qa4 {[%clk 0:13:34]} d3 {[%clk 0:11:13]} 10. Bd1  {[%clk 0:12:15]} Ng6 {[%clk 0:09:29]} 11. b4 {[%clk 0:11:37]} a5  {[%clk 0:08:41]} 12. b5 {[%clk 0:11:20]} Ncxe5 {[%clk 0:08:40]} 13. c6  {[%clk 0:10:21]} bxc6 {[%clk 0:08:24]} 14. bxc6 {[%clk 0:09:54]} Bd6  {[%clk 0:08:02]} 15. c7+ {[%clk 0:07:32]} Qd7 {[%clk 0:08:03]} 16. Ba3  {[%clk 0:07:33]} Nxf3+ {[%clk 0:07:14]} 17. gxf3 {[%clk 0:07:34]} Qxa4  {[%clk 0:07:00]} 18. Bxa4+ {[%clk 0:07:36]} Ke7 {[%clk 0:07:02]} 19. Rd1  {[%clk 0:07:11]} Rhc8 {[%clk 0:05:54]} 20. Bc6 {[%clk 0:06:11]} Ra7  {[%clk 0:05:24]} 21. c5 {[%clk 0:05:47]} Be5 {[%clk 0:05:01]} 22. Nd2  {[%clk 0:05:13]} Bxa1 {[%clk 0:04:18]} 23. Rxa1 {[%clk 0:05:14]} Raxc7  {[%clk 0:04:16]} 24. Bb5 {[%clk 0:04:51]} Nf4 {[%clk 0:03:19]} 25. Nb3  {[%clk 0:04:39]} Kf6 {[%clk 0:02:59]} 26. Ba6 {[%clk 0:03:31]} Ra8  {[%clk 0:02:47]} 27. Bb5 {[%clk 0:03:13]} Ne2+ {[%clk 0:01:59]} 28. Kf1  {[%clk 0:03:05]} a4 {[%clk 0:02:01]} 29. Nd2 {[%clk 0:03:00]} e5  {[%clk 0:01:53]} 30. f4 {[%clk 0:02:53]} exf4 {[%clk 0:01:40]} 31. c6  {[%clk 0:02:55]} Rac8 {[%clk 0:01:32]} 32. Bb2+ {[%clk 0:02:50]} Kg6  {[%clk 0:01:29]} 33. Nf3 {[%clk 0:02:51]} Kh5 {[%clk 0:00:51]} 34. Ne5  {[%clk 0:02:32]} Re8 {[%clk 0:00:16]} 35. Bc4 {[%clk 0:01:34]} Bh3+  {[%clk 0:00:09]} 36. Ke1 {[%clk 0:01:36]} f6 {[%clk 0:00:09]} 37. Bf7+  {[%clk 0:01:37]} Rxf7 38. Nxf7 {[%clk 0:01:39]} Nd4+ {[%clk 0:00:09]} 39. Kd2  {[%clk 0:01:41]} Nxc6 {[%clk 0:00:09]} 40. Kxd3 {[%clk 0:01:35]} Bf5+  {[%clk 0:00:11]} 41. Kc3 {[%clk 0:01:36]} Ne5 {[%clk 0:00:05]} 42. Nd6  {[%clk 0:01:38]} Rb8 {[%clk 0:00:05]} 43. Nxf5 {[%clk 0:01:39]} g6  {[%clk 0:00:07]} 44. Nd4 {[%clk 0:01:40]} Rc8+ {[%clk 0:00:08]} 45. Kd2  {[%clk 0:01:39]} Nc4+ {[%clk 0:00:11]} 46. Kc1 {[%clk 0:01:34]} Ne3+  {[%clk 0:00:07]} 47. Kb1 {[%clk 0:01:35]} Nc4 {[%clk 0:00:08]} 1-0

[Event "20 ans"]
[Date "2016.10.27"]
[Round "1.2"]
[White "Onischuk, Vladimir"]
[Black "Andriasian, Zaven"]
[Result "1-0"]
[WhiteElo "2720"]
[BlackElo "2611"]
[ECO "B92"]
[WhiteFed "UKR"]
[BlackFed "ARM"]
[FCGameId "830286091"]
[TimeControl "900+3"]

1. e4 {[%clk 0:15:03]} c5 {[%clk 0:15:05]} 2. Nf3 {[%clk 0:15:04]} d6  {[%clk 0:15:07]} 3. d4 {[%clk 0:15:00]} cxd4 {[%clk 0:15:09]} 4. Nxd4  {[%clk 0:15:02]} Nf6 {[%clk 0:15:11]} 5. Nc3 {[%clk 0:15:03]} a6  {[%clk 0:15:13]} 6. Be2 {[%clk 0:15:02]} g6 {[%clk 0:15:15]} 7. O-O  {[%clk 0:14:56]} Bg7 {[%clk 0:15:17]} 8. Re1 {[%clk 0:14:38]} O-O  {[%clk 0:15:17]} 9. Bf1 {[%clk 0:14:33]} Nc6 {[%clk 0:15:19]} 10. Nb3  {[%clk 0:14:28]} Bg4 {[%clk 0:15:20]} 11. f3 {[%clk 0:13:54]} Be6  {[%clk 0:15:22]} 12. Be3 {[%clk 0:13:52]} Rc8 {[%clk 0:15:19]} 13. Bf2  {[%clk 0:13:29]} Nd7 {[%clk 0:14:04]} 14. Rb1 {[%clk 0:12:07]} Bxc3  {[%clk 0:13:28]} 15. bxc3 {[%clk 0:12:09]} b5 {[%clk 0:13:30]} 16. Nd4  {[%clk 0:11:47]} Nxd4 {[%clk 0:13:24]} 17. cxd4 {[%clk 0:11:41]} Bc4  {[%clk 0:13:22]} 18. Bd3 {[%clk 0:11:26]} Qa5 {[%clk 0:13:04]} 19. h4  {[%clk 0:11:09]} Nf6 {[%clk 0:12:40]} 20. d5 {[%clk 0:11:01]} Qa4  {[%clk 0:12:07]} 21. Rb2 {[%clk 0:09:12]} h5 {[%clk 0:11:41]} 22. Qd2  {[%clk 0:08:57]} Nd7 {[%clk 0:10:24]} 23. Qg5 {[%clk 0:05:59]} Rfe8  {[%clk 0:10:26]} 24. f4 {[%clk 0:02:59]} Qa3 {[%clk 0:09:30]} 25. Rb3  {[%clk 0:01:45]} Bxb3 {[%clk 0:09:30]} 26. axb3 {[%clk 0:01:43]} e5  {[%clk 0:02:22]} 27. f5 {[%clk 0:01:17]} Kg7 {[%clk 0:01:42]} 28. Be3  {[%clk 0:01:14]} Rh8 {[%clk 0:01:40]} 29. Qe7 {[%clk 0:01:02]} Qa5  {[%clk 0:01:42]} 30. Rf1 {[%clk 0:00:46]} Qd8 {[%clk 0:01:44]} 31. Qxd6  {[%clk 0:00:38]} Re8 {[%clk 0:01:24]} 32. g3 {[%clk 0:00:16]} Nf6  {[%clk 0:00:52]} 33. Qxa6 {[%clk 0:00:13]} Ng4 {[%clk 0:00:54]} 34. Bg5  {[%clk 0:00:11]} f6 {[%clk 0:00:53]} 35. Bd2 {[%clk 0:00:12]} gxf5  {[%clk 0:00:24]} 36. Rxf5 {[%clk 0:00:13]} Ra8 {[%clk 0:00:21]} 37. Qxb5  {[%clk 0:00:12]} Ra1+ {[%clk 0:00:19]} 38. Rf1 {[%clk 0:00:12]} Rxf1+  {[%clk 0:00:17]} 39. Kxf1 {[%clk 0:00:13]} f5 {[%clk 0:00:09]} 40. exf5  {[%clk 0:00:09]} e4 {[%clk 0:00:12]} 41. Be2 {[%clk 0:00:10]} Rf8  {[%clk 0:00:06]} 42. Bc3+ {[%clk 0:00:10]} Nf6 {[%clk 2:00:30]} 1-0

[Event "20 ans"]
[Date "2016.10.27"]
[Round "1"]
[White "Vachier-Lagrave, Maxime"]
[Black "Bellahcene, Bilel"]
[Result "1-0"]
[WhiteElo "2795"]
[BlackElo "2366"]
[ECO "C15"]
[WhiteFed "FRA"]
[BlackFed "FRA"]
[FCGameId "-1391190064"]
[TimeControl "900+3"]

1. e4 {[%clk 0:15:04]} e6 {[%clk 0:14:57]} 2. d4 {[%clk 0:15:01]} d5  {[%clk 0:14:58]} 3. Nc3 {[%clk 0:15:02]} Bb4 {[%clk 0:14:52]} 4. exd5  {[%clk 0:14:51]} exd5 {[%clk 0:14:51]} 5. Bd3 {[%clk 0:14:49]} c6  {[%clk 0:14:41]} 6. Nf3 {[%clk 0:14:44]} Ne7 {[%clk 0:12:41]} 7. O-O  {[%clk 0:13:26]} Bf5 {[%clk 0:11:31]} 8. Bxf5 {[%clk 0:13:18]} Nxf5  {[%clk 0:11:32]} 9. Re1+ {[%clk 0:13:20]} Ne7 {[%clk 0:10:55]} 10. Qd3  {[%clk 0:12:40]} Nd7 {[%clk 0:09:58]} 11. a3 {[%clk 0:11:30]} Bd6  {[%clk 0:09:38]} 12. Ne2 {[%clk 0:09:12]} O-O {[%clk 0:09:07]} 13. Bf4  {[%clk 0:09:14]} Bxf4 {[%clk 0:08:16]} 14. Nxf4 {[%clk 0:09:15]} Ng6  {[%clk 0:07:52]} 15. Nxg6 {[%clk 0:08:59]} hxg6 {[%clk 0:07:53]} 16. Re3  {[%clk 0:08:28]} Nf6 {[%clk 0:06:18]} 17. Rae1 {[%clk 0:08:26]} Ne4  {[%clk 0:05:41]} 18. Ne5 {[%clk 0:08:04]} Re8 {[%clk 0:04:56]} 19. c4  {[%clk 0:06:10]} Re6 {[%clk 0:03:37]} 20. Qb3 {[%clk 0:03:48]} Rb8  {[%clk 0:02:39]} 21. cxd5 {[%clk 0:03:00]} Qxd5 {[%clk 0:01:34]} 22. Qa4  {[%clk 0:02:55]} Nd6 {[%clk 0:01:13]} 23. Qxa7 {[%clk 0:02:50]} Rbe8  {[%clk 0:00:57]} 24. Nf3 {[%clk 0:02:51]} f6 {[%clk 0:00:25]} 25. Rxe6  {[%clk 0:02:21]} Rxe6 {[%clk 0:00:27]} 26. Qb8+ {[%clk 0:02:23]} Kh7  {[%clk 0:00:24]} 27. Rxe6 {[%clk 0:02:14]} Qxe6 {[%clk 0:00:26]} 28. h3  {[%clk 0:02:11]} Qd7 {[%clk 0:00:18]} 29. a4 {[%clk 0:01:55]} Nc4  {[%clk 0:00:14]} 30. b3 {[%clk 0:01:48]} Nb6 {[%clk 0:00:17]} 31. Qf4  {[%clk 0:01:30]} Kg8 {[%clk 0:00:17]} 32. h4 {[%clk 0:01:24]} Nd5  {[%clk 0:00:18]} 33. Qe4 {[%clk 0:01:25]} Kf7 {[%clk 0:00:20]} 34. Nd2  {[%clk 0:01:17]} Qd6 {[%clk 0:00:19]} 35. Nc4 {[%clk 0:01:12]} Qb4  {[%clk 0:00:13]} 36. g3 {[%clk 0:00:59]} Ne7 {[%clk 0:00:15]} 37. Qf3  {[%clk 0:00:53]} Qe1+ {[%clk 0:00:13]} 38. Kg2 {[%clk 0:00:51]} Nf5  {[%clk 0:00:14]} 39. d5 {[%clk 0:00:46]} Nd4 {[%clk 0:00:12]} 40. Qg4  {[%clk 0:00:21]} cxd5 {[%clk 0:00:07]} 41. Qxd4 {[%clk 0:00:12]} dxc4  {[%clk 0:00:09]} 42. Qxc4+ {[%clk 0:00:14]} Ke7 {[%clk 0:00:05]} 43. Qc7+  {[%clk 0:00:15]} 1-0

[Event "20 ans"]
[Date "2016.10.27"]
[Round "1"]
[White "Anand, Viswanathan"]
[Black "Leenhouts, Koen"]
[Result "1-0"]
[WhiteElo "2802"]
[BlackElo "2499"]
[ECO "B48"]
[WhiteFed "IND"]
[BlackFed "NED"]
[FCGameId "828680449"]
[TimeControl "900+3"]

1. e4 {[%clk 0:15:04]} c5 {[%clk 0:15:03]} 2. Nf3 {[%clk 0:15:05]} e6  {[%clk 0:15:02]} 3. d4 {[%clk 0:15:05]} cxd4 {[%clk 0:14:59]} 4. Nxd4  {[%clk 0:15:06]} Nc6 {[%clk 0:14:58]} 5. Nc3 {[%clk 0:15:01]} Qc7  {[%clk 0:14:51]} 6. Be3 {[%clk 0:14:58]} a6 {[%clk 0:14:50]} 7. Qf3  {[%clk 0:14:55]} d6 {[%clk 0:14:40]} 8. Nxc6 {[%clk 0:14:50]} bxc6  {[%clk 0:14:16]} 9. O-O-O {[%clk 0:14:47]} Nf6 {[%clk 0:13:23]} 10. Qg3  {[%clk 0:13:52]} Nh5 {[%clk 0:11:51]} 11. Qh4 {[%clk 0:12:59]} Nf6  {[%clk 0:11:18]} 12. g4 {[%clk 0:12:58]} Be7 {[%clk 0:10:39]} 13. g5  {[%clk 0:12:37]} Nd7 {[%clk 0:10:22]} 14. f4 {[%clk 0:11:25]} Rb8  {[%clk 0:09:49]} 15. Qg3 {[%clk 0:08:51]} d5 {[%clk 0:07:17]} 16. f5  {[%clk 0:07:54]} Bd6 {[%clk 0:06:38]} 17. Qh3 {[%clk 0:06:05]} Ne5  {[%clk 0:05:33]} 18. f6 {[%clk 0:05:55]} g6 {[%clk 0:04:54]} 19. Qg2  {[%clk 0:05:32]} Qa5 {[%clk 0:04:18]} 20. Bd2 {[%clk 0:04:50]} Qb4  {[%clk 0:04:02]} 21. b3 {[%clk 0:04:48]} Qa3+ {[%clk 0:04:00]} 22. Kb1  {[%clk 0:04:49]} d4 {[%clk 0:03:08]} 23. h4 {[%clk 0:04:26]} dxc3  {[%clk 0:02:39]} 24. Bxc3 {[%clk 0:04:28]} O-O {[%clk 0:00:42]} 25. Qg3  {[%clk 0:04:07]} Nc4 {[%clk 0:00:24]} 26. e5 {[%clk 0:04:04]} Bxe5  {[%clk 0:00:06]} 27. Bxe5 {[%clk 0:04:05]} Nxe5 {[%clk 0:00:07]} 28. Qxe5  {[%clk 0:04:07]} Bb7 {[%clk 0:00:07]} 29. h5 {[%clk 0:03:59]} c5  {[%clk 0:00:08]} 30. hxg6 {[%clk 0:03:37]} Bxh1 {[%clk 0:00:08]} 31. Qh2  {[%clk 0:03:21]} fxg6 {[%clk 0:00:09]} 32. Rd7 {[%clk 0:03:17]} h5  {[%clk 0:00:06]} 33. Rg7+ {[%clk 0:02:58]} Kh8 {[%clk 0:00:08]} 34. Qxh1  {[%clk 0:02:56]} Rbd8 {[%clk 0:00:10]} 35. Be2 {[%clk 0:02:55]} Qa5  {[%clk 0:00:06]} 36. Bxh5 {[%clk 0:02:49]} gxh5 {[%clk 0:00:04]} 37. Qxh5#  {[%clk 0:02:50]} 1-0